[Event "*** MasterClass Titled Tuesday Blitz"]
[Site "Chess.com"]
[Date "2017.12.05"]
[Round "6"]
[White "bascheyaro"]
[Black "OparinGrigoriy"]
[Result "1/2-1/2"]
[WhiteElo "2626"]
[BlackElo "2721"]
[TimeControl "180+2"]
[EndTime "15:32:13 PST"]
[Termination "Game drawn - insufficient material"]

1. d4 {[%clk 0:03:01.9]} 1... Nf6 {[%clk 0:02:58.9]} 2. c4 {[%clk 0:03:02.3]}
2... e6 {[%clk 0:03:00.4]} 3. Nf3 {[%clk 0:03:03.8]} 3... b6 {[%clk 0:03:01.8]}
4. Nc3 {[%clk 0:03:02.4]} 4... Bb7 {[%clk 0:03:02.8]} 5. e3 {[%clk 0:03:03.7]}
5... d5 {[%clk 0:03:02]} 6. cxd5 {[%clk 0:03:03.3]} 6... exd5 {[%clk 0:03:03.2]}
7. Bd3 {[%clk 0:03:04]} 7... Bd6 {[%clk 0:03:03.8]} 8. Qc2 {[%clk 0:03:04.4]}
8... a6 {[%clk 0:03:00.1]} 9. O-O {[%clk 0:03:04.2]} 9... O-O {[%clk 0:02:59.6]}
10. Ne5 {[%clk 0:03:05.5]} 10... c5 {[%clk 0:02:56.4]} 11. b3 {[%clk 0:03:02.2]}
11... Nc6 {[%clk 0:02:51.3]} 12. Nxc6 {[%clk 0:02:59.7]} 12... Bxc6 {[%clk
0:02:52.7]} 13. Bb2 {[%clk 0:02:58.1]} 13... cxd4 {[%clk 0:02:11.2]} 14. Ne2
{[%clk 0:02:55.9]} 14... Rc8 {[%clk 0:02:06]} 15. Bxd4 {[%clk 0:02:55.5]} 15...
Ne4 {[%clk 0:01:44.8]} 16. Qb2 {[%clk 0:02:50.6]} 16... Qg5 {[%clk 0:01:23.1]}
17. Ng3 {[%clk 0:02:51.7]} 17... b5 {[%clk 0:01:14.6]} 18. Bxe4 {[%clk
0:02:38.4]} 18... dxe4 {[%clk 0:01:14.6]} 19. Bxg7 {[%clk 0:02:39.5]} 19... Bxg3
{[%clk 0:01:02.5]} 20. Bf6 {[%clk 0:02:40.8]} 20... Bxh2+ {[%clk 0:00:55.9]} 21.
Kxh2 {[%clk 0:02:41.5]} 21... Qh5+ {[%clk 0:00:55.7]} 22. Kg1 {[%clk 0:02:42.1]}
22... Bd7 {[%clk 0:00:52.4]} 23. Rac1 {[%clk 0:02:28.3]} 23... Qg6 {[%clk
0:00:48.5]} 24. Be5 {[%clk 0:02:20.6]} 24... Bh3 {[%clk 0:00:48.1]} 25. Bg3
{[%clk 0:02:21.7]} 25... Be6 {[%clk 0:00:48.9]} 26. Rxc8 {[%clk 0:02:19.5]}
26... Rxc8 {[%clk 0:00:50.8]} 27. Rc1 {[%clk 0:02:20.8]} 27... Rxc1+ {[%clk
0:00:52.2]} 28. Qxc1 {[%clk 0:02:22.7]} 28... h5 {[%clk 0:00:53.6]} 29. Qc7
{[%clk 0:02:20.9]} 29... Kh7 {[%clk 0:00:49.8]} 30. Qd8 {[%clk 0:02:18.6]} 30...
Qg8 {[%clk 0:00:46.7]} 31. Qd4 {[%clk 0:02:08.3]} 31... Qg6 {[%clk 0:00:45.9]}
32. Qa7 {[%clk 0:02:03.4]} 32... Qg4 {[%clk 0:00:42.5]} 33. Qe7 {[%clk 0:01:58]}
33... Qg7 {[%clk 0:00:40.1]} 34. Kh2 {[%clk 0:01:55.2]} 34... Qg4 {[%clk
0:00:32]} 35. Qf6 {[%clk 0:01:52.2]} 35... Qg6 {[%clk 0:00:31.8]} 36. Qd8 {[%clk
0:01:48.7]} 36... Qf5 {[%clk 0:00:30.4]} 37. Qd6 {[%clk 0:01:41.3]} 37... Qg5
{[%clk 0:00:28.1]} 38. Qxa6 {[%clk 0:01:37.6]} 38... h4 {[%clk 0:00:27.6]} 39.
Bf4 {[%clk 0:01:39]} 39... Qg4 {[%clk 0:00:28.7]} 40. Qa8 {[%clk 0:01:33.6]}
40... h3 {[%clk 0:00:25.1]} 41. Qxe4+ {[%clk 0:01:33.1]} 41... Bf5 {[%clk
0:00:24.9]} 42. Qd5 {[%clk 0:01:16]} 42... Qxg2+ {[%clk 0:00:20.2]} 43. Qxg2
{[%clk 0:01:17]} 43... hxg2 {[%clk 0:00:22.1]} 44. f3 {[%clk 0:01:07.4]} 44...
Bd3 {[%clk 0:00:12.6]} 45. a4 {[%clk 0:01:06]} 45... bxa4 {[%clk 0:00:13.7]} 46.
bxa4 {[%clk 0:01:07.2]} 46... Bf1 {[%clk 0:00:15.3]} 47. e4 {[%clk 0:01:07.1]}
47... Kg6 {[%clk 0:00:16.1]} 48. Be3 {[%clk 0:01:05.9]} 48... Kf6 {[%clk
0:00:16.3]} 49. Kg3 {[%clk 0:01:04.1]} 49... Ke5 {[%clk 0:00:17.4]} 50. a5
{[%clk 0:01:05.5]} 50... f5 {[%clk 0:00:17.6]} 51. exf5 {[%clk 0:01:02]} 51...
Kxf5 {[%clk 0:00:19.1]} 52. Bd4 {[%clk 0:01:03.5]} 52... Ke6 {[%clk 0:00:20.2]}
53. f4 {[%clk 0:01:03.3]} 53... Kd5 {[%clk 0:00:21.7]} 54. f5 {[%clk 0:01:03.1]}
54... Kxd4 {[%clk 0:00:20.8]} 55. Kf2 {[%clk 0:01:03.7]} 55... Ke5 {[%clk
0:00:20.3]} 56. a6 {[%clk 0:01:04.4]} 56... Bxa6 {[%clk 0:00:20.7]} 57. Kxg2
{[%clk 0:01:05.7]} 57... Kxf5 {[%clk 0:00:22.1]} 1/2-1/2

[Event "*** MasterClass Titled Tuesday Blitz"]
[Site "Chess.com"]
[Date "2017.12.05"]
[Round "6"]
[White "SharkAnto55"]
[Black "pulvettd"]
[Result "0-1"]
[WhiteElo "2346"]
[BlackElo "2257"]
[TimeControl "180+2"]
[EndTime "15:32:24 PST"]
[Termination "pulvettd won by resignation"]

1. d4 {[%clk 0:02:59.6]} 1... Nf6 {[%clk 0:03:00.4]} 2. c4 {[%clk 0:03:00.5]}
2... e6 {[%clk 0:03:01.4]} 3. Nf3 {[%clk 0:03:01.3]} 3... b6 {[%clk 0:03:00.9]}
4. g3 {[%clk 0:03:02.1]} 4... Ba6 {[%clk 0:02:59.4]} 5. b3 {[%clk 0:03:01]} 5...
Bb4+ {[%clk 0:02:53.7]} 6. Bd2 {[%clk 0:03:01.1]} 6... Be7 {[%clk 0:02:54]} 7.
Bg2 {[%clk 0:03:01.7]} 7... c6 {[%clk 0:02:55.2]} 8. Bc3 {[%clk 0:03:02.3]} 8...
d5 {[%clk 0:02:56.2]} 9. Nbd2 {[%clk 0:03:03.2]} 9... Nbd7 {[%clk 0:02:54.8]}
10. O-O {[%clk 0:03:03.4]} 10... O-O {[%clk 0:02:55.4]} 11. Qc2 {[%clk
0:03:01.9]} 11... c5 {[%clk 0:02:47.5]} 12. e4 {[%clk 0:02:41.7]} 12... dxc4
{[%clk 0:02:47.2]} 13. Nxc4 {[%clk 0:02:37.6]} 13... cxd4 {[%clk 0:02:43]} 14.
Nxd4 {[%clk 0:02:37.8]} 14... Rc8 {[%clk 0:02:41.1]} 15. Rfd1 {[%clk 0:01:43.2]}
15... Qc7 {[%clk 0:02:38.6]} 16. a4 {[%clk 0:01:30.4]} 16... Bxc4 {[%clk
0:02:35.1]} 17. bxc4 {[%clk 0:01:32.3]} 17... Qxc4 {[%clk 0:02:36]} 18. Rdc1
{[%clk 0:01:26.3]} 18... Ne5 {[%clk 0:02:16.1]} 19. Bf1 {[%clk 0:01:09.4]} 19...
Qxd4 {[%clk 0:02:02.3]} 20. Bxd4 {[%clk 0:01:09.3]} 20... Rxc2 {[%clk
0:01:56.1]} 21. Bxe5 {[%clk 0:01:03.3]} 21... Rfc8 {[%clk 0:01:52]} 22. Re1
{[%clk 0:00:53.1]} 22... Bc5 {[%clk 0:01:40.4]} 23. Re2 {[%clk 0:00:53.1]} 23...
Rxe2 {[%clk 0:01:39.8]} 24. Bxe2 {[%clk 0:00:55]} 24... Nxe4 {[%clk 0:01:40.8]}
25. Kg2 {[%clk 0:00:43.5]} 25... Nxf2 {[%clk 0:01:36]} 26. Rc1 {[%clk
0:00:33.4]} 26... Ne4 {[%clk 0:01:33.4]} 27. Bf3 {[%clk 0:00:27.8]} 27... Nf6
{[%clk 0:01:31.5]} 28. Rd1 {[%clk 0:00:22.4]} 28... a5 {[%clk 0:01:24.1]} 29.
Bb7 {[%clk 0:00:19.5]} 29... Rf8 {[%clk 0:01:14.1]} 30. h3 {[%clk 0:00:17.6]}
30... Nd5 {[%clk 0:01:07.2]} 31. Bxd5 {[%clk 0:00:17.4]} 31... exd5 {[%clk
0:01:09.1]} 32. Rxd5 {[%clk 0:00:18.7]} 32... f6 {[%clk 0:01:08.3]} 33. Bf4
{[%clk 0:00:19.3]} 33... Re8 {[%clk 0:01:05.1]} 34. Kf3 {[%clk 0:00:17.2]} 34...
Kf7 {[%clk 0:01:03.9]} 35. Rd7+ {[%clk 0:00:15.5]} 35... Re7 {[%clk 0:01:04.7]}
36. Rd5 {[%clk 0:00:16.3]} 36... Ke6 {[%clk 0:01:01.1]} 37. Rd2 {[%clk
0:00:15.9]} 37... Rd7 {[%clk 0:01:02]} 38. Re2+ {[%clk 0:00:15]} 38... Kf7
{[%clk 0:01:02.7]} 39. Rb2 {[%clk 0:00:12.7]} 39... Rd4 {[%clk 0:00:59.1]} 40.
Bc7 {[%clk 0:00:10.8]} 40... Rxa4 {[%clk 0:00:55.3]} 41. Bxb6 {[%clk 0:00:11.7]}
41... Rb4 {[%clk 0:00:56]} 42. Rxb4 {[%clk 0:00:11.8]} 42... Bxb4 {[%clk
0:00:57.9]} 43. Ke4 {[%clk 0:00:11.4]} 43... Ke6 {[%clk 0:00:57.1]} 44. Bd4
{[%clk 0:00:11.3]} 44... a4 {[%clk 0:00:56.6]} 45. g4 {[%clk 0:00:11.7]} 45...
a3 {[%clk 0:00:55.9]} 46. h4 {[%clk 0:00:12.8]} 46... Bd2 {[%clk 0:00:55.1]} 47.
Kd3 {[%clk 0:00:13.4]} 47... Bc1 {[%clk 0:00:55.6]} 48. Kc2 {[%clk 0:00:13.2]}
48... Bb2 {[%clk 0:00:57.5]} 49. Bc5 {[%clk 0:00:13.3]} 49... g6 {[%clk
0:00:50.3]} 50. Be3 {[%clk 0:00:11.7]} 50... f5 {[%clk 0:00:48.9]} 51. gxf5+
{[%clk 0:00:12.5]} 51... gxf5 {[%clk 0:00:50.8]} 52. Bf4 {[%clk 0:00:14.1]}
52... Kd5 {[%clk 0:00:49.8]} 0-1

[Event "*** MasterClass Titled Tuesday Blitz"]
[Site "Chess.com"]
[Date "2017.12.05"]
[Round "6"]
[White "Winehouse83"]
[Black "Bryakin_Mikhail"]
[Result "1-0"]
[WhiteElo "2396"]
[BlackElo "2547"]
[TimeControl "180+2"]
[EndTime "15:32:24 PST"]
[Termination "Winehouse83 won by resignation"]

1. d4 {[%clk 0:03:01.9]} 1... Nf6 {[%clk 0:02:59.1]} 2. c4 {[%clk 0:03:02.9]}
2... g6 {[%clk 0:03:00.5]} 3. Nc3 {[%clk 0:03:03.7]} 3... Bg7 {[%clk 0:03:02.4]}
4. e4 {[%clk 0:03:04.7]} 4... d6 {[%clk 0:03:03.7]} 5. Be2 {[%clk 0:03:06.2]}
5... O-O {[%clk 0:03:04.9]} 6. Bg5 {[%clk 0:03:07.8]} 6... h6 {[%clk 0:03:00.2]}
7. Be3 {[%clk 0:03:07.7]} 7... e5 {[%clk 0:03:00.4]} 8. d5 {[%clk 0:03:07.6]}
8... a5 {[%clk 0:03:01.5]} 9. g4 {[%clk 0:03:08]} 9... Na6 {[%clk 0:03:00.2]}
10. h4 {[%clk 0:03:08.7]} 10... Ne8 {[%clk 0:02:57.3]} 11. Qd2 {[%clk
0:03:04.6]} 11... Kh7 {[%clk 0:02:57.7]} 12. h5 {[%clk 0:03:05.1]} 12... g5
{[%clk 0:02:55.9]} 13. f3 {[%clk 0:03:01.5]} 13... Nf6 {[%clk 0:02:56.1]} 14.
O-O-O {[%clk 0:02:52.4]} 14... Nd7 {[%clk 0:02:57]} 15. Bd3 {[%clk 0:02:46.4]}
15... Ndc5 {[%clk 0:02:57.8]} 16. Nge2 {[%clk 0:02:45.1]} 16... Bd7 {[%clk
0:02:58.6]} 17. Ng3 {[%clk 0:02:44.7]} 17... a4 {[%clk 0:02:59.6]} 18. Nf5
{[%clk 0:02:35.3]} 18... Nb4 {[%clk 0:02:57.7]} 19. Bxc5 {[%clk 0:02:35]} 19...
dxc5 {[%clk 0:02:58.2]} 20. a3 {[%clk 0:02:32.4]} 20... Na6 {[%clk 0:02:54.5]}
21. Bc2 {[%clk 0:02:30.5]} 21... Nb8 {[%clk 0:02:41.2]} 22. d6 {[%clk
0:02:22.3]} 22... Ra6 {[%clk 0:02:09.3]} 23. dxc7 {[%clk 0:02:17.2]} 23... Qxc7
{[%clk 0:02:11.2]} 24. Nd5 {[%clk 0:02:15.2]} 24... Qd8 {[%clk 0:02:05.2]} 25.
Nde3 {[%clk 0:02:06.3]} 25... Bf6 {[%clk 0:01:52.6]} 26. Qd5 {[%clk 0:01:46.9]}
26... Qc8 {[%clk 0:01:45.2]} 27. Nd6 {[%clk 0:01:41]} 27... Be6 {[%clk
0:00:49.6]} 28. Nxc8 {[%clk 0:01:28.5]} 28... Bxd5 {[%clk 0:00:50.5]} 29. exd5+
{[%clk 0:01:27.4]} 29... Kh8 {[%clk 0:00:44.8]} 30. Bf5 {[%clk 0:01:28.7]} 30...
e4 {[%clk 0:00:30.2]} 31. fxe4 {[%clk 0:01:26.9]} 31... Bd4 {[%clk 0:00:31.8]}
32. Nc2 {[%clk 0:01:25.6]} 32... Be5 {[%clk 0:00:30]} 33. d6 {[%clk 0:01:22]}
33... Nc6 {[%clk 0:00:29.1]} 34. Rd5 {[%clk 0:01:18.1]} 34... Bf4+ {[%clk
0:00:28.1]} 35. Kb1 {[%clk 0:01:18.7]} 35... Ra8 {[%clk 0:00:18.9]} 36. Nb6
{[%clk 0:01:15.4]} 36... Rad8 {[%clk 0:00:19.1]} 37. Nd7 {[%clk 0:01:14]} 37...
Rg8 {[%clk 0:00:20.1]} 38. Nf6 {[%clk 0:01:10.3]} 38... Rgf8 {[%clk 0:00:20]}
39. Rhd1 {[%clk 0:01:08.5]} 39... Kg7 {[%clk 0:00:19.9]} 40. Nd7 {[%clk
0:01:08.3]} 40... Rh8 {[%clk 0:00:21.1]} 41. Nxc5 {[%clk 0:01:07.6]} 41... b6
{[%clk 0:00:22.5]} 42. Nd3 {[%clk 0:01:05.7]} 42... Bg3 {[%clk 0:00:22.8]} 43.
e5 {[%clk 0:01:04.5]} 43... Rhe8 {[%clk 0:00:24]} 44. Ncb4 {[%clk 0:01:03]}
44... Na5 {[%clk 0:00:22.2]} 45. d7 {[%clk 0:01:00]} 45... Re7 {[%clk
0:00:22.9]} 46. Rb5 {[%clk 0:00:56.7]} 46... Nb3 {[%clk 0:00:17.9]} 47. Nc6
{[%clk 0:00:55]} 47... Rdxd7 {[%clk 0:00:19]} 48. Bxd7 {[%clk 0:00:55.5]} 48...
Rxd7 {[%clk 0:00:20.9]} 49. Rd5 {[%clk 0:00:54.7]} 49... Rc7 {[%clk 0:00:21.3]}
50. Ndb4 {[%clk 0:00:55.5]} 50... Nc5 {[%clk 0:00:19.9]} 51. Nd4 {[%clk
0:00:49.8]} 51... Bf4 {[%clk 0:00:18.7]} 52. Nf5+ {[%clk 0:00:50.8]} 52... Kh7
{[%clk 0:00:20.3]} 53. Nd3 {[%clk 0:00:48.3]} 53... Nxd3 {[%clk 0:00:19.7]} 54.
R5xd3 {[%clk 0:00:46.2]} 54... Rxc4 {[%clk 0:00:21.6]} 55. Rd7 {[%clk
0:00:47.1]} 55... Kg8 {[%clk 0:00:22.5]} 56. Rd8+ {[%clk 0:00:48.2]} 56... Kh7
{[%clk 0:00:23.6]} 57. R1d7 {[%clk 0:00:48.4]} 1-0

[Event "*** MasterClass Titled Tuesday Blitz"]
[Site "Chess.com"]
[Date "2017.12.05"]
[Round "6"]
[White "Zenzo"]
[Black "ChessWarrior7197"]
[Result "0-1"]
[WhiteElo "2489"]
[BlackElo "2657"]
[TimeControl "180+2"]
[EndTime "15:32:30 PST"]
[Termination "ChessWarrior7197 won by checkmate"]

1. e4 {[%clk 0:03:01.9]} 1... e5 {[%clk 0:03:00.1]} 2. Nf3 {[%clk 0:03:03]} 2...
Nc6 {[%clk 0:03:01.1]} 3. Bb5 {[%clk 0:03:04.1]} 3... Nf6 {[%clk 0:02:59.6]} 4.
d3 {[%clk 0:03:05.5]} 4... d6 {[%clk 0:02:58.5]} 5. O-O {[%clk 0:03:06]} 5... g6
{[%clk 0:02:59.7]} 6. c3 {[%clk 0:03:05.8]} 6... Bg7 {[%clk 0:03:00.8]} 7. Nbd2
{[%clk 0:03:07]} 7... O-O {[%clk 0:03:01.4]} 8. Re1 {[%clk 0:03:07.4]} 8... a6
{[%clk 0:02:59.4]} 9. Ba4 {[%clk 0:03:08.5]} 9... b5 {[%clk 0:02:59.1]} 10. Bc2
{[%clk 0:03:09.6]} 10... Bb7 {[%clk 0:02:59.7]} 11. a4 {[%clk 0:03:08.8]} 11...
Re8 {[%clk 0:02:56.9]} 12. Nf1 {[%clk 0:03:08.3]} 12... b4 {[%clk 0:02:56.3]}
13. Ne3 {[%clk 0:03:03.1]} 13... bxc3 {[%clk 0:02:55.6]} 14. bxc3 {[%clk
0:03:03.7]} 14... d5 {[%clk 0:02:56]} 15. exd5 {[%clk 0:02:48.5]} 15... Nxd5
{[%clk 0:02:57.2]} 16. Nxd5 {[%clk 0:02:47.8]} 16... Qxd5 {[%clk 0:02:56.6]} 17.
Bb3 {[%clk 0:02:49.4]} 17... Qd7 {[%clk 0:02:49.1]} 18. Ng5 {[%clk 0:02:41.1]}
18... Nd8 {[%clk 0:02:49.4]} 19. Ba3 {[%clk 0:02:31]} 19... Bd5 {[%clk
0:02:47.6]} 20. c4 {[%clk 0:02:02.3]} 20... Bc6 {[%clk 0:02:41.8]} 21. Rb1
{[%clk 0:01:47.7]} 21... h6 {[%clk 0:02:40.4]} 22. Ne4 {[%clk 0:01:47.7]} 22...
Ne6 {[%clk 0:02:38.6]} 23. Nc5 {[%clk 0:01:46.2]} 23... Nxc5 {[%clk 0:02:39.6]}
24. Bxc5 {[%clk 0:01:48.1]} 24... Rab8 {[%clk 0:02:41.5]} 25. a5 {[%clk
0:01:44.7]} 25... e4 {[%clk 0:02:38.3]} 26. d4 {[%clk 0:01:40.2]} 26... Qf5
{[%clk 0:01:33.2]} 27. d5 {[%clk 0:01:39.2]} 27... Bd7 {[%clk 0:01:28.5]} 28.
Bc2 {[%clk 0:01:36.2]} 28... Rbc8 {[%clk 0:01:07.9]} 29. Bd4 {[%clk 0:01:15.4]}
29... Bf8 {[%clk 0:01:04.5]} 30. Qe2 {[%clk 0:01:11]} 30... Qg5 {[%clk 0:01:02]}
31. Rb7 {[%clk 0:00:56.1]} 31... Bg4 {[%clk 0:01:02.4]} 32. Qe3 {[%clk
0:00:52.3]} 32... Qxe3 {[%clk 0:00:54.9]} 33. Rxe3 {[%clk 0:00:53]} 33... Bf5
{[%clk 0:00:38]} 34. h3 {[%clk 0:00:53.7]} 34... h5 {[%clk 0:00:38.5]} 35. Ra7
{[%clk 0:00:43.1]} 35... c6 {[%clk 0:00:35]} 36. Ba4 {[%clk 0:00:34.3]} 36...
Rb8 {[%clk 0:00:36.4]} 37. Bxc6 {[%clk 0:00:31.6]} 37... Rb1+ {[%clk 0:00:37.2]}
38. Kh2 {[%clk 0:00:33.1]} 38... Bd6+ {[%clk 0:00:37.9]} 39. g3 {[%clk
0:00:34.5]} 39... Reb8 {[%clk 0:00:38]} 40. Bb6 {[%clk 0:00:31.1]} 40... Rb2
{[%clk 0:00:37.4]} 41. Kg2 {[%clk 0:00:29.8]} 41... Rc2 {[%clk 0:00:31.1]} 42.
g4 {[%clk 0:00:25]} 42... hxg4 {[%clk 0:00:31.7]} 43. hxg4 {[%clk 0:00:26.9]}
43... Bxg4 {[%clk 0:00:32.5]} 44. Rxe4 {[%clk 0:00:28.3]} 44... Bf5 {[%clk
0:00:33.8]} 45. Rd4 {[%clk 0:00:22.5]} 45... Kg7 {[%clk 0:00:34.8]} 46. Ra8
{[%clk 0:00:19.7]} 46... Rxa8 {[%clk 0:00:35.6]} 47. Bxa8 {[%clk 0:00:21.6]}
47... Rc3 {[%clk 0:00:33.8]} 48. c5 {[%clk 0:00:19.8]} 48... Bh3+ {[%clk
0:00:34.7]} 49. Kg1 {[%clk 0:00:13.1]} 49... Rc1+ {[%clk 0:00:35.5]} 50. Rd1
{[%clk 0:00:13.5]} 50... Rxd1# {[%clk 0:00:36.7]} 0-1

[Event "*** MasterClass Titled Tuesday Blitz"]
[Site "Chess.com"]
[Date "2017.12.05"]
[Round "6"]
[White "Koksik_13"]
[Black "likantrophuss"]
[Result "1-0"]
[WhiteElo "2325"]
[BlackElo "2451"]
[TimeControl "180+2"]
[EndTime "15:32:43 PST"]
[Termination "Koksik_13 won by resignation"]

1. e4 {[%clk 0:03:01.1]} 1... Nf6 {[%clk 0:02:57.2]} 2. Nc3 {[%clk 0:03:00.5]}
2... d6 {[%clk 0:02:55.4]} 3. d4 {[%clk 0:03:01.2]} 3... e5 {[%clk 0:02:52.1]}
4. Nf3 {[%clk 0:02:58.9]} 4... exd4 {[%clk 0:02:50.7]} 5. Nxd4 {[%clk
0:02:59.7]} 5... Be7 {[%clk 0:02:51.1]} 6. Bd3 {[%clk 0:03:00]} 6... O-O {[%clk
0:02:51.9]} 7. O-O {[%clk 0:03:00.5]} 7... c5 {[%clk 0:02:51.1]} 8. Nde2 {[%clk
0:02:59]} 8... Nc6 {[%clk 0:02:51.9]} 9. Ng3 {[%clk 0:02:59.4]} 9... a6 {[%clk
0:02:52.8]} 10. a4 {[%clk 0:02:59.8]} 10... Nb4 {[%clk 0:02:52.6]} 11. Bf4
{[%clk 0:02:58.3]} 11... Be6 {[%clk 0:02:49.7]} 12. Qd2 {[%clk 0:02:57.3]} 12...
Re8 {[%clk 0:02:48.1]} 13. Rad1 {[%clk 0:02:54.8]} 13... Qa5 {[%clk 0:02:40.3]}
14. Rfe1 {[%clk 0:02:54.8]} 14... Nxd3 {[%clk 0:02:38.4]} 15. cxd3 {[%clk
0:02:47.6]} 15... Qb4 {[%clk 0:02:21.8]} 16. h3 {[%clk 0:02:44.2]} 16... Bb3
{[%clk 0:02:10.2]} 17. Ra1 {[%clk 0:02:41]} 17... g6 {[%clk 0:01:58.9]} 18. Bg5
{[%clk 0:02:40.7]} 18... Qd4 {[%clk 0:01:43.6]} 19. Kh1 {[%clk 0:02:25]} 19...
c4 {[%clk 0:01:42.4]} 20. Ra3 {[%clk 0:02:09.3]} 20... d5 {[%clk 0:01:32.8]} 21.
Bxf6 {[%clk 0:02:10.1]} 21... Bxf6 {[%clk 0:01:22.9]} 22. Nxd5 {[%clk
0:02:11.1]} 22... Qxb2 {[%clk 0:01:15.9]} 23. Qxb2 {[%clk 0:01:29.6]} 23... Bxb2
{[%clk 0:01:17.5]} 24. Rxb3 {[%clk 0:01:30.5]} 24... cxb3 {[%clk 0:01:17.8]} 25.
Rb1 {[%clk 0:01:31.1]} 25... Be5 {[%clk 0:01:15.6]} 26. f4 {[%clk 0:01:32.2]}
26... Bxf4 {[%clk 0:01:03.8]} 27. Nxf4 {[%clk 0:01:32.2]} 27... b5 {[%clk
0:00:57.1]} 28. axb5 {[%clk 0:01:31.8]} 28... a5 {[%clk 0:00:58.4]} 29. Rxb3
{[%clk 0:01:32.7]} 29... a4 {[%clk 0:00:59.2]} 30. Ra3 {[%clk 0:01:33.5]} 30...
Reb8 {[%clk 0:00:54.2]} 31. Nge2 {[%clk 0:00:56.7]} 31... Rxb5 {[%clk
0:00:54.5]} 32. Nc3 {[%clk 0:00:57.6]} 32... Rb3 {[%clk 0:00:37.3]} 33. Rxa4
{[%clk 0:00:54.7]} 33... Rxa4 {[%clk 0:00:33.6]} 34. Nxa4 {[%clk 0:00:55.7]}
34... g5 {[%clk 0:00:34.6]} 35. Nd5 {[%clk 0:00:52.2]} 35... Rxd3 {[%clk
0:00:35.1]} 36. Nac3 {[%clk 0:00:34.7]} 36... Kg7 {[%clk 0:00:27.3]} 37. Kg1
{[%clk 0:00:35.9]} 37... Rd2 {[%clk 0:00:27]} 38. Kh2 {[%clk 0:00:35.9]} 38...
h5 {[%clk 0:00:24.5]} 39. Kg3 {[%clk 0:00:36.2]} 39... Kg6 {[%clk 0:00:19.6]}
40. Kf3 {[%clk 0:00:37.2]} 40... f6 {[%clk 0:00:17.8]} 41. Ne2 {[%clk
0:00:33.8]} 41... Rd3+ {[%clk 0:00:17.9]} 42. Kf2 {[%clk 0:00:34.7]} 42... Ra3
{[%clk 0:00:18.4]} 43. Nd4 {[%clk 0:00:33]} 43... Rd3 {[%clk 0:00:17.8]} 44. Nf5
{[%clk 0:00:29.2]} 44... Rd2+ {[%clk 0:00:18.7]} 45. Ke3 {[%clk 0:00:25.4]}
45... Ra2 {[%clk 0:00:19.9]} 46. Kd4 {[%clk 0:00:16.8]} 46... Rxg2 {[%clk
0:00:20.1]} 47. Nh4+ {[%clk 0:00:15.8]} 47... gxh4 {[%clk 0:00:19.8]} 48. Nf4+
{[%clk 0:00:16.6]} 48... Kg5 {[%clk 0:00:21.1]} 49. Nxg2 {[%clk 0:00:17.3]}
49... f5 {[%clk 0:00:23]} 50. e5 {[%clk 0:00:15.1]} 50... f4 {[%clk 0:00:22.2]}
51. Nxf4 {[%clk 0:00:16.3]} 51... Kxf4 {[%clk 0:00:21.3]} 52. e6 {[%clk
0:00:17.7]} 52... Kg3 {[%clk 0:00:22.5]} 53. e7 {[%clk 0:00:18.9]} 53... Kxh3
{[%clk 0:00:24]} 54. e8=Q {[%clk 0:00:19.9]} 54... Kg2 {[%clk 0:00:25.3]} 55.
Qg6+ {[%clk 0:00:20.4]} 55... Kh2 {[%clk 0:00:24.1]} 56. Ke3 {[%clk 0:00:21.3]}
56... h3 {[%clk 0:00:25.9]} 57. Kf2 {[%clk 0:00:22.3]} 1-0